Workbook

Sheet Лист1
A1: Школа | C1: МКОУ "Басмановская СОШ" | F1: Утвердил: | G1: должность | H1: и.о.директора
A2: Типовое примерное меню приготавливаемых блюд | G2: фамилия | H2: Михайлова Ю.А.
A3: Возрастная категория | E3: 7-11 лет | G3: дата | H3: 1 | I3: 9 | J3: 2025
H4: день | I4: месяц | J4: год
A5: Неделя | B5: День недели | C5: Прием пищи | D5: Раздел меню | E5: Блюда | F5: Вес блюда, г | G5: Белки | H5: Жиры | I5: Углеводы | J5: Калорийность | K5: № рецептуры | L5: Цена
A6: 1 | B6: 1 | C6: Завтрак | D6: гор.блюдо | E6: Каша Дружба молочная с маслом слив | F6: 200 | G6: 12 | H6: 10 | I6: 36 | J6: 296 | K6: 226 | L6: 28.5
E7: какао "Витошка" | F7: 200 | G7: 0 | H7: 3 | I7: 11 | J7: 145 | K7: 457 | L7: 16
D8: гор.напиток | E8: Йогурт | F8: 125 | G8: 5 | H8: 3 | I8: 27 | J8: 68 | K8: 77 | L8: 40
D9: хлеб | E9: Хлеб пшенич с валетэк | F9: 30 | G9: 2 | H9: 0 | I9: 19 | J9: 99 | L9: 2
D10: фрукты
F11: =SUM(F6:F10) -> 555 | G11: 19 | H11: 16 | I11: 93 | J11: 608 | K11: 760
D13: итого | L13: =SUM(L6:L12) -> 86.5
A14: =A6 -> 1 | B14: =B6 -> 1 | C14: Обед | D14: закуска
D15: 1 блюдо | E15: Щи из свежей капусты | F15: 250 | G15: 2 | H15: 3 | I15: 9 | J15: 88 | K15: 104 | L15: 17.5
D16: 2 блюдо | E16: Макаронные изделия отварные | F16: 150 | G16: 5 | H16: 3 | I16: 34 | J16: 180 | K16: 256 | L16: 10.8
D17: гарнир | E17: биточки из кур | F17: 100 | G17: 15.9 | H17: 15.3 | I17: 9.1 | J17: 260.2 | K17: 372 | L17: 61.8
D18: напиток | E18: Напиток Витошка | F18: 200 | G18: 0 | H18: 0 | I18: 23 | J18: 90 | K18: 507 | L18: 11.5
D19: хлеб бел. | E19: Хлеб пшенич с валетэком | F19: 50 | G19: 1 | H19: 0 | I19: 15 | J19: 92 | L19: 3.5
D20: хлеб черн. | E20: Хлеб ржано пшенич с валетэком | F20: 30 | G20: 3 | H20: 1 | I20: 14 | J20: 75 | L20: 2
F22: 780 | G22: =SUM(G15:G21) -> 26.9 | H22: 758 | I22: 24 | J22: 22 | K22: 100
D23: итого | F23: =SUM(F14:F22) -> 1560 | G23: =SUM(G14:G22) -> 53.8 | H23: 780.3 | I23: 128.1 | J23: 807.2 | L23: =SUM(L14:L22) -> 107.1
A24: =A6 -> 1 | B24: =B6 -> 1 | C24: Итого за день: | F24: =F13+F23 -> 1560 | G24: =G13+G23 -> 53.8 | H24: 780.3 | I24: 128.1 | J24: 807.2 | L24: =L13+L23 -> 193.6
A25: 1 | B25: 2 | C25: Завтрак | D25: гор.блюдо | E25: Огурец свежий или помидор | F25: 60 | G25: 0.5 | H25: 1.6 | I25: 2.1 | J25: 47.3 | L25: 14
E26: рагу из птицы | F26: 200 | G26: 19.3 | H26: 22.1 | I26: 44.6 | J26: 334.5 | K26: 376 | L26: 92
D27: гор.напиток | E27: Компот из свежих яблок и лимона | F27: 200 | G27: 0.3 | H27: 0.2 | I27: 14.2 | J27: 60 | K27: 487 | L27: 15
D28: хлеб | E28: хлеб пшенич с валетэк | F28: 30 | G28: 1.5 | H28: 0 | I28: 18.7 | J28: 99 | K28: 465 | L28: 2
D29: фрукты | E29: Хлеб ржано- пшенич с валетэк | F29: 40 | G29: 3.7 | H29: 1.6 | I29: 15 | J29: 107 | K29: 77 | L29: 2.5
D32: итого | F32: =SUM(F25:F31) -> 530 | G32: =SUM(G25:G31) -> 25.3 | H32: =SUM(H25:H31) -> 25.5 | I32: =SUM(I25:I31) -> 94.6 | J32: =SUM(J25:J31) -> 647.8 | L32: 125.5
A33: =A25 -> 1 | B33: =B25 -> 2 | C33: Обед | D33: закуска
D34: 1 блюдо | E34: Суп картофельный с крупой | F34: 250 | G34: 8.9 | H34: 10.9 | I34: 33.7 | J34: 93.8 | K34: 115 | L34: 16.8
D35: 2 блюдо | E35: Пюре картофельное | F35: 150 | G35: 4 | H35: 9 | I35: 23 | J35: 156 | K35: 377 | L35: 16
D36: гарнир | E36: котлеты "Нежные" с соусом томатным | F36: 100 | G36: 18.9 | H36: 13.1 | I36: 7.2 | J36: 274 | K36: 373 | L36: 86
D37: напиток | E37: Напиток из шиповника | F37: 200 | G37: 0 | H37: 0 | I37: 20 | J37: 74 | K37: 496 | L37: 7.3
D38: хлеб бел. | E38: Хлеб пшенич с валетэком | F38: 50 | G38: 1 | H38: 0 | I38: 15 | J38: 92 | L38: 3.5
D39: хлеб черн. | E39: Хлеб ржано пшенич с валетэком | F39: 30 | G39: 3 | H39: 1 | I39: 14 | J39: 75 | L39: 2
D42: итого | F42: =SUM(F33:F41) -> 780 | G42: =SUM(G33:G41) -> 35.8 | H42: =SUM(H33:H41) -> 34 | I42: =SUM(I33:I41) -> 112.9 | J42: =SUM(J33:J41) -> 764.8 | L42: 131.6
A43: =A25 -> 1 | B43: =B25 -> 2 | C43: Итого за день: | F43: =F32+F42 -> 1310 | G43: =G32+G42 -> 61.1 | H43: =H32+H42 -> 59.5 | I43: =I32+I42 -> 207.5 | J43: =J32+J42 -> 1412.6 | L43: 257.1
A44: 1 | B44: 3 | C44: Завтрак | D44: гор.блюдо | E44: запеканка творожная со сгущенным молоком | F44: 250/20 | G44: 25.6 | H44: 19.2 | I44: 36.4 | J44: 418.7 | K44: 282 | L44: 145
D46: гор.напиток | E46: Кофейный напиток с молоком | F46: 200 | G46: 3.3 | H46: 4.6 | I46: 14.4 | J46: 106.4 | K46: 465 | L46: 17.5
D47: хлеб | E47: Хлеб пшенич с валетэк | F47: 30 | G47: 1.5 | I47: 18.7 | J47: 99 | L47: 2
D48: фрукты | E48: Фрукт | F48: 200 | L48: 40
D51: итого | F51: 700 | G51: =SUM(G44:G50) -> 30.4 | H51: =SUM(H44:H50) -> 23.8 | I51: =SUM(I44:I50) -> 69.5 | J51: =SUM(J44:J50) -> 624.1 | L51: 204.5
A52: =A44 -> 1 | B52: =B44 -> 3 | C52: Обед | D52: закуска
D53: 1 блюдо | E53: Борщ со свежей капустой и сметаной | F53: 250 | G53: 2 | H53: 5 | I53: 13 | J53: 133 | K53: 95 | L53: 13.5
D54: 2 блюдо | E54: Фрикадельки из говядины припущенные | F54: 100 | G54: 16 | H54: 15 | I54: 11 | J54: 258 | K54: 348 | L54: 110
D55: гарнир | E55: каша гречневая рассыпчатая | F55: 150 | G55: 6.1 | H55: 2.8 | I55: 34.6 | J55: 231 | K55: 202 | L55: 13
D56: напиток | E56: Какао с молоком " Витошка" | F56: 200 | G56: 4 | H56: 3 | I56: 25 | J56: 145 | K56: 462 | L56: 16
D57: хлеб бел. | E57: Хлеб пшенич с валетэком | F57: 50 | G57: 1 | H57: 0 | I57: 15 | J57: 92 | L57: 3.5
D58: хлеб черн. | E58: Хлеб ржано пшенич с валетэком | F58: 30 | G58: 3 | H58: 1 | I58: 14 | J58: 75 | L58: 2
D61: итого | F61: =SUM(F52:F60) -> 780 | G61: =SUM(G52:G60) -> 32.1 | H61: =SUM(H52:H60) -> 26.8 | I61: =SUM(I52:I60) -> 112.6 | J61: =SUM(J52:J60) -> 934 | L61: 158
A62: =A44 -> 1 | B62: =B44 -> 3 | C62: Итого за день: | F62: =F51+F61 -> 1480 | G62: =G51+G61 -> 62.5 | H62: =H51+H61 -> 50.6 | I62: =I51+I61 -> 182.1 | J62: =J51+J61 -> 1558.1 | L62: 362.5
A63: 1 | B63: 4 | C63: Завтрак | D63: гор.блюдо | E63: Огурец свежий или помидор | F63: 60 | G63: 0.5 | H63: 1.6 | I63: 2.1 | J63: 47.3 | L63: 14
E64: Рис припущенный | F64: 150 | G64: 4 | H64: 4 | I64: 25 | J64: 145 | K64: 462 | L64: 15
D65: гор.напиток | E65: рыба, тущенная с овощами | F65: 100 | G65: 4 | H65: 3 | I65: 0 | J65: 53 | K65: 77 | L65: 64.5
D66: хлеб | E66: Напиток Витошка | F66: 200 | G66: 0 | H66: 0 | I66: 23 | J66: 90 | K66: 507 | L66: 11.5
D67: фрукты | E67: хлеб пшенич с валетэк | F67: 30 | G67: 1.5 | H67: 0 | I67: 18.7 | J67: 99 | K67: 465 | L67: 2
E68: Хлеб ржано- пшенич с валетэк | F68: 40 | G68: 3.7 | H68: 1.6 | I68: 15 | J68: 107 | K68: 77 | L68: 2.5
D70: итого | F70: =SUM(F63:F69) -> 580 | G70: =SUM(G63:G69) -> 13.7 | H70: =SUM(H63:H69) -> 10.2 | I70: =SUM(I63:I69) -> 83.8 | J70: =SUM(J63:J69) -> 541.3 | L70: 109.5
A71: =A63 -> 1 | B71: =B63 -> 4 | C71: Обед | D71: закуска
D72: 1 блюдо | E72: Рассольник ленинград с крупой и сметан | F72: 250 | G72: 3 | H72: 5 | I72: 18 | J72: 131 | K72: 100 | L72: 21
D73: 2 блюдо | E73: Макаронные изделия отварные | F73: 150 | G73: 5 | H73: 3 | I73: 35 | J73: 189 | K73: 256 | L73: 10.8
D74: гарнир | E74: биточки из кур | F74: 100 | G74: 15.9 | H74: 15.3 | I74: 9.1 | J74: 260.2 | K74: 372 | L74: 61.8
D75: напиток | E75: Какао с молоком " Витошка" | F75: 200 | G75: 4 | H75: 3 | I75: 25 | J75: 145 | K75: 462 | L75: 16
D76: хлеб бел. | E76: Хлеб пшенич с валетэком | F76: 50 | G76: 1 | H76: 0 | I76: 15 | J76: 92 | L76: 3.5
D77: хлеб черн. | E77: Хлеб ржано пшенич с валетэком | F77: 30 | G77: 3 | H77: 1 | I77: 14 | J77: 75 | L77: 2
D80: итого | F80: =SUM(F71:F79) -> 780 | G80: =SUM(G71:G79) -> 31.9 | H80: =SUM(H71:H79) -> 27.3 | I80: =SUM(I71:I79) -> 116.1 | J80: =SUM(J71:J79) -> 892.2 | L80: 115.1
A81: =A63 -> 1 | B81: =B63 -> 4 | C81: Итого за день: | F81: =F70+F80 -> 1360 | G81: =G70+G80 -> 45.6 | H81: =H70+H80 -> 37.5 | I81: =I70+I80 -> 199.9 | J81: =J70+J80 -> 1433.5 | L81: 224.6
A82: 1 | B82: 5 | C82: Завтрак | D82: гор.блюдо | E82: каша манная с маслом сливочным | F82: 200 | G82: 5.9 | H82: 7.7 | I82: 35.5 | J82: 286.1 | K82: 214 | L82: 38
E83: Кофейный напиток с молоком | F83: 200 | G83: 3.3 | H83: 4.6 | I83: 14.4 | J83: 106.4 | K83: 465 | L83: 17.5
D84: гор.напиток | E84: Хлеб пшенич с валетэк | F84: 30 | G84: 1 | I84: 18 | J84: 99 | L84: 2
D85: хлеб | E85: Йогурт | F85: 125 | G85: 6.8 | H85: 6.9 | I85: 9.4 | J85: 68.4 | L85: 40
D86: фрукты
D89: итого | F89: =SUM(F82:F88) -> 555 | G89: =SUM(G82:G88) -> 17 | H89: =SUM(H82:H88) -> 19.2 | I89: =SUM(I82:I88) -> 77.3 | J89: =SUM(J82:J88) -> 559.9 | L89: 97.5
A90: =A82 -> 1 | B90: =B82 -> 5 | C90: Обед | D90: закуска
D91: 1 блюдо | E91: Суп гороховый с картофелем и гренками | F91: 250 | G91: 6.6 | H91: 2.2 | I91: 21.8 | J91: 144.5 | K91: 128 | L91: 12.7
D92: 2 блюдо | E92: Тефтели из говядины с соусом | F92: 100 | G92: 12.9 | H92: 10.8 | I92: 9.1 | J92: 220 | K92: 350 | L92: 98
D93: гарнир | E93: Пюре картофельное | F93: 150 | G93: 4 | H93: 9 | I93: 24 | J93: 146 | K93: 377 | L93: 16
D94: напиток | E94: Компот из с/ф | F94: 200 | G94: 0 | H94: 3 | I94: 10 | J94: 56 | K94: 457 | L94: 4.2
D95: хлеб бел. | E95: Хлеб пшенич с валетэком | F95: 50 | G95: 1 | H95: 0 | I95: 15 | J95: 92 | L95: 3.5
D96: хлеб черн. | E96: Хлеб ржано пшенич с валетэком | F96: 30 | G96: 3 | H96: 1 | I96: 14 | J96: 75 | L96: 2
D99: итого | F99: =SUM(F90:F98) -> 780 | G99: =SUM(G90:G98) -> 27.5 | H99: =SUM(H90:H98) -> 26 | I99: =SUM(I90:I98) -> 93.9 | J99: =SUM(J90:J98) -> 733.5 | L99: =SUM(L91:L98) -> 136.4
A100: =A82 -> 1 | B100: =B82 -> 5 | C100: Итого за день: | F100: =F89+F99 -> 1335 | G100: =G89+G99 -> 44.5 | H100: =H89+H99 -> 45.2 | I100: =I89+I99 -> 171.2 | J100: =J89+J99 -> 1293.4 | L100: 233.9
A101: 2 | B101: 6 | C101: Завтрак | D101: гор.блюдо | E101: Биточки из говядины с соусом | F101: 100 | G101: 15.9 | H101: 15.3 | I101: 9.1 | J101: 209 | K101: 339 | L101: 90.8
E102: каша гречневая рассыпчатая | F102: 150 | G102: 6.1 | H102: 2.8 | I102: 34.6 | J102: 231 | K102: 202 | L102: 13
D103: гор.напиток | E103: Чай с сахаром и лимоном | F103: 200 | G103: 0.1 | H103: 3.09 | I103: 9.8 | J103: 56.4 | K103: 459 | L103: 5.5
D104: хлеб | E104: хлеб пшенич с валетэк | F104: 30 | G104: 1.5 | H104: 0 | I104: 18.7 | J104: 99 | K104: 465 | L104: 2
D105: фрукты | E105: Хлеб ржано- пшенич с валетэк | F105: 40 | G105: 3.7 | H105: 1.6 | I105: 15 | J105: 107 | K105: 77 | L105: 2.5
D108: итого | F108: =SUM(F101:F107) -> 520 | G108: =SUM(G101:G107) -> 27.3 | H108: 22.79 | I108: 87.2 | J108: 702.4 | L108: =SUM(L101:L107) -> 113.8
A109: =A101 -> 2 | B109: =B101 -> 6 | C109: Обед | D109: закуска
D110: 1 блюдо | E110: Суп с макаронными изделиями | F110: 250 | G110: 2.6 | H110: 2.2 | I110: 16.4 | J110: 99.6 | K110: 130 | L110: 10.5
D111: 2 блюдо | E111: Рис припущенный | F111: 150 | G111: 4 | H111: 4 | I111: 25 | J111: 145 | K111: 462 | L111: 15
D112: гарнир | E112: рыба, тущенная с овощами | F112: 100 | G112: 4 | H112: 3 | I112: 0 | J112: 53 | K112: 77 | L112: 64.5
D113: напиток | E113: Напиток из шиповника | F113: 200 | G113: 0 | H113: 0 | I113: 20 | J113: 74 | K113: 496 | L113: 7.3
D114: хлеб бел. | E114: Хлеб пшенич с валетэком | F114: 50 | G114: 1 | H114: 0 | I114: 15 | J114: 92 | L114: 3.5
D115: хлеб черн. | E115: Хлеб ржано пшенич с валетэком | F115: 30 | G115: 3 | H115: 1 | I115: 14 | J115: 75 | L115: 2
D118: итого | F118: =SUM(F109:F117) -> 780 | G118: =SUM(G109:G117) -> 14.6 | H118: 10.2 | I118: 90.4 | J118: 538.6 | L118: =SUM(L109:L117) -> 102.8
A119: =A101 -> 2 | B119: =B101 -> 6 | C119: Итого за день: | F119: =F108+F118 -> 1300 | G119: =G108+G118 -> 41.9 | H119: =H108+H118 -> 32.99 | I119: =I108+I118 -> 177.6 | J119: =J108+J118 -> 1241 | L119: 216.6
A120: 2 | B120: 7 | C120: Завтрак | D120: гор.блюдо | E120: Каша "Дружба" | F120: 200 | G120: 11.5 | H120: 9.8 | I120: 31.4 | J120: 296 | K120: 226 | L120: 28.5
E121: Какао с молоком " Витошка" | F121: 200 | G121: 4 | H121: 3 | I121: 25 | J121: 145 | K121: 462 | L121: 16
D122: гор.напиток | E122: сыр полутвердый порциями | F122: 15 | G122: 1 | H122: 0 | I122: 17 | J122: 126 | K122: 495 | L122: 14
D123: хлеб | E123: Хлеб пшенич с валетэк | F123: 30 | G123: 1.5 | I123: 18.7 | J123: 99 | L123: 2
D124: фрукты | E124: Фрукт | F124: 200 | G124: 0.8 | H124: 0.8 | I124: 19.6 | J124: 94 | L124: 40
D127: итого | F127: =SUM(F120:F126) -> 645 | G127: =SUM(G120:G126) -> 18.8 | H127: 13.6 | I127: 111.7 | J127: 760 | L127: =SUM(L120:L126) -> 100.5
A128: =A120 -> 2 | B128: =B120 -> 7 | C128: Обед | D128: закуска
D129: 1 блюдо | E129: Суп с рыбными консервами | F129: 250 | G129: 9.7 | H129: 9.8 | I129: 13.1 | J129: 139 | K129: 123 | L129: 33.8
D130: 2 блюдо | E130: Макаронные изделия отварные | F130: 150 | G130: 5 | H130: 3 | I130: 35 | J130: 189 | K130: 256 | L130: 10.8
D131: гарнир | E131: гуляш из говядины | F131: 100 | G131: 16.3 | H131: 15.9 | I131: 17.4 | J131: 237 | K131: 327 | L131: 80
D132: напиток | E132: Чай с сахаром и лимоном | F132: 200 | G132: 0.1 | H132: 3.09 | I132: 9.8 | J132: 56.4 | K132: 459 | L132: 5.5
D133: хлеб бел. | E133: Хлеб пшенич с валетэком | F133: 50 | G133: 1 | H133: 0 | I133: 15 | J133: 92 | L133: 3.5
D134: хлеб черн. | E134: Хлеб ржано пшенич с валетэком | F134: 30 | G134: 3 | H134: 1 | I134: 14 | J134: 75 | L134: 2
D137: итого | F137: =SUM(F128:F136) -> 780 | G137: =SUM(G128:G136) -> 35.1 | H137: 32.79 | I137: 104.3 | J137: 788.4 | L137: =SUM(L128:L136) -> 135.6
A138: =A120 -> 2 | B138: =B120 -> 7 | C138: Итого за день: | F138: =F127+F137 -> 1425 | G138: =G127+G137 -> 53.9 | H138: =H127+H137 -> 46.39 | I138: =I127+I137 -> 216 | J138: =J127+J137 -> 1548.4 | L138: 236.1
A139: 2 | B139: 8 | C139: Завтрак | D139: гор.блюдо | E139: Огурец свежий или помидор | F139: 60 | G139: 0.5 | H139: 1.6 | I139: 2.1 | J139: 47.3 | L139: 14
E140: Плов из отварной птицы | F140: 200 | G140: 20 | H140: 17 | I140: 25 | J140: 333 | K140: 375 | L140: 80.5
D141: гор.напиток | E141: Компот из свежих яблок и лимона | F141: 200 | G141: 0.3 | H141: 0.2 | I141: 14.2 | J141: 60 | K141: 487 | L141: 15
D142: хлеб | E142: хлеб пшенич с валетэк | F142: 30 | G142: 1.5 | H142: 0 | I142: 18.7 | J142: 99 | K142: 465 | L142: 2
D143: фрукты | E143: Хлеб ржано- пшенич с валетэк | F143: 40 | G143: 3.7 | H143: 1.6 | I143: 15 | J143: 107 | K143: 77 | L143: 2.5
D146: итого | F146: =SUM(F139:F145) -> 530 | G146: =SUM(G139:G145) -> 26 | H146: 20.4 | I146: 75 | J146: 646.3 | L146: =SUM(L139:L145) -> 114
A147: =A139 -> 2 | B147: =B139 -> 8 | C147: Обед | D147: закуска
D148: 1 блюдо | E148: Суп картофельный с крупой | F148: 250 | G148: 8.9 | H148: 10.9 | I148: 33.7 | J148: 93.8 | K148: 115 | L148: 16.8
D149: 2 блюдо | E149: Пюре картофельное | F149: 150 | G149: 4 | H149: 9 | I149: 23 | J149: 156 | K149: 377 | L149: 16
D150: гарнир | E150: котлеты "Нежные" с соусом томатным | F150: 100 | G150: 18.9 | H150: 13.1 | I150: 7.2 | J150: 274 | K150: 373 | L150: 86
D151: напиток | E151: Напиток из шиповника | F151: 200 | G151: 0 | H151: 0 | I151: 20 | J151: 74 | K151: 496 | L151: 7.3
D152: хлеб бел. | E152: Хлеб пшенич с валетэком | F152: 50 | G152: 1 | H152: 0 | I152: 15 | J152: 92 | L152: 3.5
D153: хлеб черн. | E153: Хлеб ржано пшенич с валетэком | F153: 30 | G153: 3 | H153: 1 | I153: 14 | J153: 75 | L153: 2
D156: итого | F156: =SUM(F147:F155) -> 780 | G156: =SUM(G147:G155) -> 35.8 | H156: 34 | I156: 112.9 | J156: 764.8 | L156: =SUM(L147:L155) -> 131.6
A157: =A139 -> 2 | B157: =B139 -> 8 | C157: Итого за день: | F157: =F146+F156 -> 1310 | G157: =G146+G156 -> 61.8 | H157: =H146+H156 -> 54.4 | I157: =I146+I156 -> 187.9 | J157: =J146+J156 -> 1411.1 | L157: 245.6
A158: 2 | B158: 9 | C158: Завтрак | D158: гор.блюдо | E158: каша пшенная вязкая с маслом слив | F158: 200 | G158: 8.4 | H158: 7.6 | I158: 36.8 | J158: 296 | K158: 223 | L158: 24
D160: гор.напиток | E160: Чай с сахаром | F160: 200 | G160: 0 | H160: 3 | I160: 10 | J160: 56.4 | K160: 457 | L160: 3.2
D161: хлеб | E161: Хлеб пшенич с валетэк | F161: 30 | G161: 1.5 | I161: 18.7 | J161: 99 | L161: 2
D162: фрукты | E162: Фрукт | F162: 200 | G162: 0.8 | H162: 0.8 | I162: 19.6 | J162: 94 | L162: 40
D165: итого | F165: =SUM(F158:F164) -> 630 | G165: =SUM(G158:G164) -> 10.7 | H165: 11.4 | I165: 85.1 | J165: 545.4 | L165: =SUM(L158:L164) -> 69.2
A166: =A158 -> 2 | B166: =B158 -> 9 | C166: Обед | D166: закуска
D167: 1 блюдо | E167: Щи со свежей капусты со сметаной | F167: 250 | G167: 2 | H167: 3 | I167: 9 | J167: 88 | K167: 104 | L167: 17.5
D168: 2 блюдо | E168: Рагу из овощей | F168: 150 | G168: 2.2 | H168: 7.4 | I168: 17.4 | J168: 154 | K168: 177 | L168: 26
D169: гарнир | E169: Биточки ( котлеты) из мяса говяд с томатсоусом | F169: 100 | G169: 16 | H169: 15 | I169: 18 | J169: 273 | K169: 372 | L169: 90.8
D170: напиток | E170: Напиток Витошка | F170: 200 | G170: 0 | H170: 0 | I170: 23 | J170: 90 | K170: 507 | L170: 11.5
D171: хлеб бел. | E171: Хлеб пшенич с валетэком | F171: 50 | G171: 1 | H171: 0 | I171: 15 | J171: 92 | L171: 3.5
D172: хлеб черн. | E172: Хлеб ржано пшенич с валетэком | F172: 30 | G172: 3 | H172: 1 | I172: 14 | J172: 75 | L172: 2
D175: итого | F175: =SUM(F166:F174) -> 780 | G175: =SUM(G166:G174) -> 24.2 | H175: 26.4 | I175: 96.4 | J175: 772 | L175: =SUM(L166:L174) -> 151.3
A176: =A158 -> 2 | B176: =B158 -> 9 | C176: Итого за день: | F176: =F165+F175 -> 1410 | G176: =G165+G175 -> 34.9 | H176: =H165+H175 -> 37.8 | I176: =I165+I175 -> 181.5 | J176: =J165+J175 -> 1317.4 | L176: 220.5
A177: 2 | B177: 10 | C177: Завтрак | D177: гор.блюдо | E177: Пюре картофельное | F177: 150 | G177: 4 | H177: 9 | I177: 23 | J177: 156 | K177: 377 | L177: 16
E178: котлеты "Нежные" с соусом томатным | F178: 100 | G178: 18.9 | H178: 13.1 | I178: 7.2 | J178: 274 | K178: 373 | L178: 86
D179: гор.напиток | E179: Компот из с/ф | F179: 200 | G179: 0 | H179: 0 | I179: 20 | J179: 74 | K179: 496 | L179: 4.2
D180: хлеб | E180: хлеб пшенич с валетэк | F180: 30 | G180: 1.5 | H180: 0 | I180: 18.7 | J180: 99 | K180: 465 | L180: 2
D181: фрукты | E181: Хлеб ржано- пшенич с валетэк | F181: 40 | G181: 3.7 | H181: 1.6 | I181: 15 | J181: 107 | K181: 77 | L181: 2.5
D184: итого | F184: =SUM(F177:F183) -> 520 | G184: =SUM(G177:G183) -> 28.1 | H184: 23.7 | I184: 83.9 | J184: 710 | L184: =SUM(L177:L183) -> 110.7
A185: =A177 -> 2 | B185: =B177 -> 10 | C185: Обед | D185: закуска
D186: 1 блюдо | E186: Рассольник ленинград с крупой и сметан | F186: 250 | G186: 3 | H186: 5 | I186: 18 | J186: 131 | K186: 100 | L186: 21
D187: 2 блюдо | E187: Плов из отварной птицы | F187: 200 | G187: 20 | H187: 17 | I187: 25 | J187: 333 | K187: 375 | L187: 80.5
D188: гарнир
D189: напиток | E189: Чай с сахаром и лимоном | F189: 200 | G189: 0.1 | H189: 3.09 | I189: 9.8 | J189: 56.4 | K189: 459 | L189: 5.5
D190: хлеб бел. | E190: Хлеб пшенич с валетэком | F190: 50 | G190: 1 | H190: 0 | I190: 15 | J190: 92 | L190: 3.5
D191: хлеб черн. | E191: Хлеб ржано пшенич с валетэком | F191: 30 | G191: 3 | H191: 1 | I191: 14 | J191: 75 | L191: 2
D194: итого | F194: =SUM(F185:F193) -> 730 | G194: =SUM(G185:G193) -> 27.1 | H194: 26.09 | I194: 81.8 | J194: 687.4 | L194: =SUM(L185:L193) -> 112.5
A195: =A177 -> 2 | B195: =B177 -> 10 | C195: Итого за день: | F195: =F184+F194 -> 1250 | G195: =G184+G194 -> 55.2 | H195: =H184+H194 -> 49.79 | I195: =I184+I194 -> 165.7 | J195: =J184+J194 -> 1397.4 | L195: 223.2
A196: 1 | B196: 11 | C196: Завтрак | D196: гор.блюдо | E196: Каша Дружба молочная с маслом слив | F196: 200 | G196: 12 | H196: 10 | I196: 36 | J196: 296 | K196: 226 | L196: 28.5
E197: какао "Витошка" | F197: 200 | G197: 0 | H197: 3 | I197: 11 | J197: 145 | K197: 457 | L197: 16
D198: гор.напиток | E198: Йогурт | F198: 125 | G198: 5 | H198: 3 | I198: 27 | J198: 68 | K198: 77 | L198: 40
D199: хлеб | E199: Хлеб пшенич с валетэк | F199: 30 | G199: 2 | H199: 0 | I199: 19 | J199: 99 | L199: 2
D200: фрукты
F201: =SUM(F196:F200) -> 555 | G201: 19 | H201: 16 | I201: 93 | J201: 608 | K201: 760
D203: итого | L203: =SUM(L196:L202) -> 86.5
A204: =A196 -> 1 | B204: 11 | C204: Обед | D204: закуска
D205: 1 блюдо | E205: Щи из свежей капусты | F205: 250 | G205: 2 | H205: 3 | I205: 9 | J205: 88 | K205: 104 | L205: 17.5
D206: 2 блюдо | E206: Макаронные изделия отварные | F206: 150 | G206: 5 | H206: 3 | I206: 34 | J206: 180 | K206: 256 | L206: 10.8
D207: гарнир | E207: биточки из кур | F207: 100 | G207: 15.9 | H207: 15.3 | I207: 9.1 | J207: 260.2 | K207: 372 | L207: 61.8
D208: напиток | E208: Напиток Витошка | F208: 200 | G208: 0 | H208: 0 | I208: 23 | J208: 90 | K208: 507 | L208: 11.5
D209: хлеб бел. | E209: Хлеб пшенич с валетэком | F209: 50 | G209: 1 | H209: 0 | I209: 15 | J209: 92 | L209: 3.5
D210: хлеб черн. | E210: Хлеб ржано пшенич с валетэком | F210: 30 | G210: 3 | H210: 1 | I210: 14 | J210: 75 | L210: 2
F212: 780 | G212: =SUM(G205:G211) -> 26.9 | H212: 758 | I212: 24 | J212: 22 | K212: 100
D213: итого | F213: =SUM(F204:F212) -> 1560 | G213: =SUM(G204:G212) -> 53.8 | H213: 780.3 | I213: 128.1 | J213: 807.2 | L213: =SUM(L204:L212) -> 107.1
A214: =A196 -> 1 | B214: =B196 -> 11 | C214: Итого за день: | F214: =F203+F213 -> 1560 | G214: =G203+G213 -> 53.8 | H214: 780.3 | I214: 128.1 | J214: 807.2 | L214: =L203+L213 -> 193.6
A215: 1 | B215: 12 | C215: Завтрак | D215: гор.блюдо | E215: Огурец свежий или помидор | F215: 60 | G215: 0.5 | H215: 1.6 | I215: 2.1 | J215: 47.3 | L215: 14
E216: рагу из птицы | F216: 200 | G216: 19.3 | H216: 22.1 | I216: 44.6 | J216: 334.5 | K216: 376 | L216: 92
D217: гор.напиток | E217: Компот из свежих яблок и лимона | F217: 200 | G217: 0.3 | H217: 0.2 | I217: 14.2 | J217: 60 | K217: 487 | L217: 15
D218: хлеб | E218: хлеб пшенич с валетэк | F218: 30 | G218: 1.5 | H218: 0 | I218: 18.7 | J218: 99 | K218: 465 | L218: 2
D219: фрукты | E219: Хлеб ржано- пшенич с валетэк | F219: 40 | G219: 3.7 | H219: 1.6 | I219: 15 | J219: 107 | K219: 77 | L219: 2.5
D222: итого | F222: =SUM(F215:F221) -> 530 | G222: =SUM(G215:G221) -> 25.3 | H222: 25.5 | I222: 94.6 | J222: 647.8 | L222: =SUM(L215:L221) -> 125.5
A223: =A215 -> 1 | B223: =B215 -> 12 | C223: Обед | D223: закуска
D224: 1 блюдо | E224: Суп картофельный с крупой | F224: 250 | G224: 8.9 | H224: 10.9 | I224: 33.7 | J224: 93.8 | K224: 115 | L224: 16.8
D225: 2 блюдо | E225: Пюре картофельное | F225: 150 | G225: 4 | H225: 9 | I225: 23 | J225: 156 | K225: 377 | L225: 16
D226: гарнир | E226: котлеты "Нежные" с соусом томатным | F226: 100 | G226: 18.9 | H226: 13.1 | I226: 7.2 | J226: 274 | K226: 373 | L226: 86
D227: напиток | E227: Напиток из шиповника | F227: 200 | G227: 0 | H227: 0 | I227: 20 | J227: 74 | K227: 496 | L227: 7.3
D228: хлеб бел. | E228: Хлеб пшенич с валетэком | F228: 50 | G228: 1 | H228: 0 | I228: 15 | J228: 92 | L228: 3.5
D229: хлеб черн. | E229: Хлеб ржано пшенич с валетэком | F229: 30 | G229: 3 | H229: 1 | I229: 14 | J229: 75 | L229: 2
D232: итого | F232: =SUM(F223:F231) -> 780 | G232: =SUM(G223:G231) -> 35.8 | H232: 34 | I232: 112.9 | J232: 764.8 | L232: =SUM(L223:L231) -> 131.6
A233: =A215 -> 1 | B233: =B215 -> 12 | C233: Итого за день: | F233: =F222+F232 -> 1310 | G233: =G222+G232 -> 61.1 | H233: 59.5 | I233: 207.5 | J233: 1412.6 | L233: =L222+L232 -> 257.1
A234: 1 | B234: 13 | C234: Завтрак | D234: гор.блюдо | E234: запеканка творожная со сгущенным молоком | F234: 250/20 | G234: 25.6 | H234: 19.2 | I234: 36.4 | J234: 418.7 | K234: 282 | L234: 145
D236: гор.напиток | E236: Кофейный напиток с молоком | F236: 200 | G236: 3.3 | H236: 4.6 | I236: 14.4 | J236: 106.4 | K236: 465 | L236: 17.5
D237: хлеб | E237: Хлеб пшенич с валетэк | F237: 30 | G237: 1.5 | I237: 18.7 | J237: 99 | L237: 2
D238: фрукты | E238: Фрукт | F238: 200 | L238: 40
D241: итого | F241: 700 | G241: =SUM(G234:G240) -> 30.4 | H241: 23.8 | I241: 69.5 | J241: 624.1 | L241: =SUM(L234:L240) -> 204.5
A242: =A234 -> 1 | B242: =B234 -> 13 | C242: Обед | D242: закуска
D243: 1 блюдо | E243: Борщ со свежей капустой и сметаной | F243: 250 | G243: 2 | H243: 5 | I243: 13 | J243: 133 | K243: 95 | L243: 13.5
D244: 2 блюдо | E244: Фрикадельки из говядины припущенные | F244: 100 | G244: 16 | H244: 15 | I244: 11 | J244: 258 | K244: 348 | L244: 110
D245: гарнир | E245: каша гречневая рассыпчатая | F245: 150 | G245: 6.1 | H245: 2.8 | I245: 34.6 | J245: 231 | K245: 202 | L245: 13
D246: напиток | E246: Какао с молоком " Витошка" | F246: 200 | G246: 4 | H246: 3 | I246: 25 | J246: 145 | K246: 462 | L246: 16
D247: хлеб бел. | E247: Хлеб пшенич с валетэком | F247: 50 | G247: 1 | H247: 0 | I247: 15 | J247: 92 | L247: 3.5
D248: хлеб черн. | E248: Хлеб ржано пшенич с валетэком | F248: 30 | G248: 3 | H248: 1 | I248: 14 | J248: 75 | L248: 2
... 107 more rows
